fUST/lending_fUST_20250102
["ID","MTS","AMOUNT","RATE_DAILY","PERIOD"]
[347415672,1735776644759,-623.47,0.00019726,3]
[347415673,1735776644774,-278.02650264,0.00019726,3]
[347415674,1735776644785,-500.0,0.00019726,3]
[347415675,1735776644796,-849.09,0.00019726,3]
[347415676,1735776644807,-600.23,0.00019726,3]
[347415677,1735776644818,-952.32,0.00019726,3]
[347415678,1735776644828,-500.0,0.00019726,3]
[347415679,1735776644839,-565.01579627,0.00019726,3]
[347415680,1735776644850,-667.4,0.00019726,3]
[347415681,1735776644861,-639.07,0.00019726,3]
[347415682,1735776644872,-4994.91,0.00019726,3]
[347415683,1735776644883,-500.0,0.00019726,3]
[347415684,1735776644900,-500.0,0.00019726,3]
[347415685,1735776644909,-500.0,0.00019726,3]
[347415686,1735776644921,-500.0,0.00019726,3]
[347415687,1735776644931,-500.0,0.00019726,3]
[347415688,1735776644940,-500.0,0.00019726,3]
[347415689,1735776644950,-500.0,0.00019726,3]
[347415690,1735776644960,-1006.46,0.00019726,3]
[347415691,1735776644969,-746.51,0.00019726,3]
[347415692,1735776644979,-500.0,0.00019726,3]
[347415693,1735776644989,-500.0,0.00019726,3]
[347415694,1735776644999,-500.0,0.00019726,3]
[347415695,1735776645009,-500.0,0.00019726,3]
[347415696,1735776645019,-500.0,0.00019726,3]
[347415697,1735776645030,-500.0,0.00019726,3]
[347415698,1735776645039,-500.0,0.00019726,3]
[347415699,1735776645050,-593.48,0.00019726,3]
[347415700,1735776645059,-793.13,0.00019726,3]
[347415701,1735776645069,-779.13,0.00019726,3]
[347415702,1735776645079,-893.86,0.00019726,3]
[347415703,1735776645089,-500.0,0.00019726,3]
[347415704,1735776645099,-706.07,0.00019726,3]
[347415705,1735776645109,-711.74,0.00019726,3]
[347415706,1735776645119,-500.0,0.00019726,2]
[347415707,1735776645129,-618.24,0.00019726,3]
[347415708,1735776645143,-546.07,0.00019726,3]
[347415709,1735776645153,-500.0,0.00019726,3]
[347415710,1735776645162,-500.0,0.00019726,3]
[347415711,1735776645172,-885.46,0.00019726,3]
[347415712,1735776645182,-1045.5,0.00019726,3]
[347415713,1735776645191,-706.9,0.00019726,3]
[347415714,1735776645201,-500.0,0.00019726,3]
[347415715,1735776645211,-151.0,0.00019726,2]
[347415716,1735776645221,-1969.6,0.00019726,3]
[347415717,1735776645231,-500.0,0.00019726,3]
[347415718,1735776645241,-500.0,0.00019726,3]
[347415719,1735776645251,-500.0,0.00019726,3]
[347415720,1735776645260,-805.35,0.00019726,3]
[347415721,1735776645270,-500.0,0.00019726,3]
[347415722,1735776645280,-961.49,0.00019726,3]
[347415723,1735776645290,-5804.87,0.00019726,3]
[347415724,1735776645301,-675.98,0.00019726,3]
[347415725,1735776645310,-462.78374545,0.00019726,3]
[347415726,1735776645320,-500.0,0.00019726,3]
[347415727,1735776645330,-1184.09,0.00019726,3]
[347415728,1735776645339,-500.0,0.00019726,3]
[347415729,1735776645349,-700.75,0.00019726,3]
[347415730,1735776645359,-500.0,0.00019726,3]
[347415731,1735776645368,-269.34445418,0.00019726,3]
[347415732,1735776645377,-500.0,0.00019726,3]
[347415733,1735776645389,-1471.65,0.00019726,3]
[347415734,1735776645398,-3932.81,0.00019726,3]
[347415735,1735776645408,-2941.69,0.00019726,3]
[347415736,1735776645418,-500.0,0.00019726,3]
[347415737,1735776645428,-500.0,0.00019726,3]
[347415738,1735776645437,-500.0,0.00019726,3]
[347415739,1735776645447,-1462.67,0.00019726,3]
[347415740,1735776645456,-500.0,0.00019726,3]
[347415741,1735776645465,-183.50654338,0.00019726,3]
[347415742,1735776645475,-1148.45,0.00019726,3]
[347415743,1735776645484,-27130.11,0.00019726,3]
[347415744,1735776645494,-947.65,0.00019726,3]
[347415745,1735776645504,-571.14,0.00019726,3]
[347415746,1735776645515,-151.0,0.00019726,2]
[347415747,1735776645524,-376.69601759,0.00019726,3]
[347415748,1735776645534,-1065.16,0.00019726,3]
[347415749,1735776645544,-500.0,0.00019726,3]
[347415750,1735776645554,-500.0,0.00019726,3]
[347415751,1735776645563,-156.395316,0.00019726,2]
[347415752,1735776645572,-2353.47,0.00019726,3]
[347415753,1735776645582,-838.06,0.00019726,3]
[347415754,1735776645591,-500.0,0.00019726,3]
[347415755,1735776645600,-500.0,0.00019726,3]
[347415756,1735776645611,-651.93,0.00019726,3]
[347415757,1735776645620,-2413.6,0.00019726,3]
[347415759,1735776645630,-151.0,0.00019726,2]
[347415761,1735776645641,-500.0,0.00019726,3]
[347415762,1735776645652,-2612.8,0.00019726,3]
[347415763,1735776645661,-500.0,0.00019726,3]
[347415764,1735776645671,-500.0,0.00019726,3]
[347415766,1735776645680,-500.0,0.00019726,3]
[347415768,1735776645690,-342.98000283,0.00019726,3]
[347415769,1735776645699,-500.0,0.00019726,3]
[347415770,1735776645708,-875.61,0.00019726,3]
[347415771,1735776645719,-1347.25,0.00019726,3]
[347415772,1735776645729,-1373.54,0.00019726,3]
[347415773,1735776645739,-1420.39,0.00019726,3]
[347415774,1735776645748,-500.0,0.00019726,3]
[347415775,1735776645758,-1655.38,0.00019726,2]
[347415776,1735776645767,-500.0,0.00019726,3]
[347415777,1735776645777,-1344.22,0.00019726,3]
[347415779,1735776645786,-584.47,0.00019726,3]
[347415781,1735776645796,-3217.33,0.00019726,3]
[347415782,1735776645805,-1282.0,0.00019726,3]
[347415783,1735776645815,-500.0,0.00019726,3]
[347415784,1735776645825,-500.0,0.00019726,3]
[347415786,1735776645835,-726.81,0.00019726,3]
[347415787,1735776645844,-500.0,0.00019726,3]
[347415788,1735776645854,-1682.19,0.00019726,3]
[347415789,1735776645868,-500.0,0.00019726,3]
[347415790,1735776645878,-153.0,0.00019726,2]
[347415791,1735776645890,-296.27,0.0001974,2]
[347415792,1735776645900,-534.0,0.00019741,2]
[347415793,1735776645910,-2077.0,0.00019741,2]
[347415794,1735776645919,-2293.0,0.00019741,2]
[347415795,1735776645929,-394.0,0.00019741,2]
[347415796,1735776645940,-505.921,0.0001978,2]
[347415797,1735776645950,-804.49453375,0.000199,2]
[347415798,1735776645959,-500.0,0.00019973,2]
[347415799,1735776645970,-166.482,0.0002,2]
[347415800,1735776645979,-2008.03854315,0.0002,2]
[347415801,1735776645989,-151.0,0.0002,2]
[347415802,1735776645998,-151.0,0.0002,2]
[347415803,1735776646007,-151.0,0.0002,2]
[347415804,1735776646017,-151.0,0.0002,2]
[347415805,1735776646026,-500.0,0.0002,3]
[347415806,1735776646036,-500.0,0.0002,3]
[347415808,1735776646045,-685.83,0.0002,3]
[347415810,1735776646055,-500.0,0.0002,3]
[347415812,1735776646064,-10658.0,0.0002,2]
[347415814,1735776646074,-500.0,0.0002,3]
[347415816,1735776646084,-500.0,0.0002,3]
[347415818,1735776646093,-500.0,0.0002,3]
[347415820,1735776646102,-500.0,0.0002,3]
[347415822,1735776646112,-527.35,0.0002,3]
[347415824,1735776646121,-629.85,0.0002,3]
[347415826,1735776646131,-500.0,0.0002,3]
[347415828,1735776646142,-583.03,0.0002,3]
[347415830,1735776646151,-500.0,0.0002,3]
[347415832,1735776646162,-500.0,0.0002,3]
[347415834,1735776646171,-9014.62109564,0.0002,2]
[347415836,1735776646180,-500.0,0.0002,3]
[347415837,1735776646190,-500.0,0.0002,3]
[347415838,1735776646199,-500.0,0.0002,3]
[347415839,1735776646209,-500.0,0.0002,3]
[347415840,1735776646220,-751.99,0.0002,3]
[347415841,1735776646229,-624.98,0.0002,3]
[347415842,1735776646239,-151.0,0.0002,2]
[347415843,1735776646248,-155.644096,0.0002,2]
[347415844,1735776646258,-294.04532813,0.0002,3]
[347415846,1735776646267,-151.0,0.0002,2]
[347415847,1735776646277,-151.0,0.0002,2]
[347415848,1735776646287,-844.0,0.0002,3]
[347415849,1735776646297,-967.7,0.0002,3]
[347415850,1735776646306,-500.0,0.0002,3]
[347415851,1735776646316,-500.0,0.0002,3]
[347415852,1735776646326,-500.0,0.0002,3]
[347415853,1735776646336,-849.09,0.0002,3]
[347415854,1735776646345,-600.23,0.0002,3]
[347415855,1735776646356,-952.32,0.0002,3]
[347415856,1735776646367,-500.0,0.0002,3]
[347415857,1735776646381,-667.4,0.0002,3]
[347415858,1735776646398,-639.07,0.0002,3]
[347415859,1735776646408,-500.0,0.0002,3]
[347415860,1735776646417,-4994.91,0.0002,3]
[347415861,1735776646427,-500.0,0.0002,3]
[347415862,1735776646438,-500.0,0.0002,3]
[347415863,1735776646447,-500.0,0.0002,3]
[347415864,1735776646458,-500.0,0.0002,3]
[347415865,1735776646468,-500.0,0.0002,3]
[347415866,1735776646477,-1006.46,0.0002,3]
[347415867,1735776646487,-746.51,0.0002,3]
[347415868,1735776646497,-500.0,0.0002,3]
[347415869,1735776646507,-500.0,0.0002,3]
[347415870,1735776646516,-500.0,0.0002,3]
[347415871,1735776646526,-500.0,0.0002,3]
[347415872,1735776646535,-500.0,0.0002,3]
[347415873,1735776646545,-500.0,0.0002,3]
[347415874,1735776646555,-593.48,0.0002,3]
[347415875,1735776646566,-793.13,0.0002,3]
[347415876,1735776646576,-779.13,0.0002,3]
[347415877,1735776646700,-893.86,0.0002,3]
[347415878,1735776646709,-500.0,0.0002,3]
[347415879,1735776646719,-706.07,0.0002,3]
[347415880,1735776646728,-711.74,0.0002,3]
[347415881,1735776646738,-500.0,0.0002,2]
[347415882,1735776646747,-546.07,0.0002,3]
[347415883,1735776646757,-885.46,0.0002,3]
[347415884,1735776646766,-1045.5,0.0002,3]
[347415885,1735776646775,-706.9,0.0002,3]
[347415886,1735776646785,-500.0,0.0002,3]
[347415887,1735776646795,-260.272918,0.0002,2]
[347415888,1735776646804,-1969.6,0.0002,3]
[347415889,1735776646814,-500.0,0.0002,3]
[347415890,1735776646824,-500.0,0.0002,3]
[347415891,1735776646833,-805.35,0.0002,3]
[347415892,1735776646843,-500.0,0.0002,3]
[347415893,1735776646853,-961.49,0.0002,3]
[347415894,1735776646862,-5804.87,0.0002,3]
[347415895,1735776646875,-675.98,0.0002,3]
[347415896,1735776646884,-500.0,0.0002,3]
[347415897,1735776646897,-1184.09,0.0002,3]
[347415898,1735776646907,-500.0,0.0002,3]
[347415899,1735776646916,-700.75,0.0002,3]
[347415900,1735776646926,-500.0,0.0002,3]
[347415901,1735776646935,-500.0,0.0002,3]
[347415902,1735776646946,-1471.65,0.0002,3]
[347415903,1735776646955,-3932.81,0.0002,3]
[347415904,1735776646965,-2941.69,0.0002,3]
[347415905,1735776646974,-500.0,0.0002,3]
[347415906,1735776646984,-151.33355125,0.0002,2]
[347415907,1735776646993,-500.0,0.0002,3]
[347415908,1735776647002,-500.0,0.0002,3]
[347415909,1735776647011,-1462.67,0.0002,3]
[347415910,1735776647020,-500.0,0.0002,3]
[347415911,1735776647030,-1148.45,0.0002,3]
[347415912,1735776647040,-27130.11,0.0002,3]
[347415913,1735776647049,-947.65,0.0002,3]
[347415914,1735776647058,-571.14,0.0002,3]
[347415915,1735776647067,-1065.16,0.0002,3]
[347415916,1735776647077,-500.0,0.0002,3]
[347415917,1735776647087,-500.0,0.0002,3]
[347415918,1735776647096,-2353.47,0.0002,3]
[347415919,1735776647105,-838.06,0.0002,3]
[347415920,1735776647115,-500.0,0.0002,3]
[347415921,1735776647124,-500.0,0.0002,3]
[347415922,1735776647134,-651.93,0.0002,3]
[347415923,1735776647145,-2413.6,0.0002,3]
[347415924,1735776647155,-151.0,0.0002,2]
[347415925,1735776647164,-151.0,0.0002,2]
[347415926,1735776647174,-500.0,0.0002,3]
[347415927,1735776647183,-2612.8,0.0002,3]
[347415928,1735776647193,-500.0,0.0002,3]
[347415929,1735776647202,-500.0,0.0002,3]
[347415930,1735776647212,-500.0,0.0002,3]
[347415931,1735776647222,-500.0,0.0002,3]
[347415932,1735776647232,-875.61,0.0002,3]
[347415933,1735776647242,-1347.25,0.0002,3]
[347415934,1735776647251,-1373.54,0.0002,3]
[347415935,1735776647261,-1420.39,0.0002,3]
[347415936,1735776647270,-500.0,0.0002,3]
[347415937,1735776647280,-1655.38,0.0002,2]
[347415938,1735776647290,-500.0,0.0002,3]
[347415939,1735776647299,-1344.22,0.0002,3]
[347415940,1735776647308,-584.47,0.0002,3]
[347415941,1735776647318,-3217.33,0.0002,3]
[347415942,1735776647327,-1282.0,0.0002,3]
[347415943,1735776647337,-500.0,0.0002,3]
[347415944,1735776647346,-500.0,0.0002,3]
[347415945,1735776647355,-726.81,0.0002,3]
[347415946,1735776647365,-500.0,0.0002,3]
[347415947,1735776647374,-1682.19,0.0002,3]
[347415948,1735776647384,-500.0,0.0002,3]
[347415949,1735776647395,-804.4945337,0.00020111,2]
[347415950,1735776647404,-151.0,0.00020273,2]
[347415951,1735776647414,-294.361008,0.00020273,2]
[347415952,1735776647423,-252.66013,0.00020273,2]
[347415953,1735776647432,-500.0,0.00020273,3]
[347415954,1735776647441,-500.0,0.00020273,3]
[347415955,1735776647451,-685.83,0.00020273,3]
[347415956,1735776647460,-500.0,0.00020273,3]
[347415957,1735776647469,-302.18279662,0.00020273,3]
[347415958,1735776647479,-500.0,0.00020273,3]
[347415959,1735776647488,-500.0,0.00020273,3]
[347415960,1735776647498,-500.0,0.00020273,3]
[347415961,1735776647508,-527.35,0.00020273,3]
[347415962,1735776647518,-629.85,0.00020273,3]
[347415963,1735776647528,-500.0,0.00020273,3]
[347415964,1735776647538,-583.03,0.00020273,3]
[347415965,1735776647549,-167.98749268,0.00020273,3]
[347415966,1735776647558,-500.0,0.00020273,3]
[347415967,1735776647568,-500.0,0.00020273,3]
[347415968,1735776647577,-500.0,0.00020273,3]
[347415969,1735776647586,-500.0,0.00020273,3]
[347415970,1735776647596,-751.99,0.00020273,3]
[347415971,1735776647605,-624.98,0.00020273,3]
[347415972,1735776647614,-151.0,0.00020273,2]
[347415973,1735776647623,-151.0,0.00020273,2]
[347415974,1735776647632,-190.535,0.00020273,2]
[347415975,1735776647643,-151.0,0.00020273,2]
[347415976,1735776647652,-844.0,0.00020273,3]
[347415977,1735776647661,-967.7,0.00020273,3]
[347415978,1735776647670,-500.0,0.00020273,3]
[347415979,1735776647680,-500.0,0.00020273,3]
[347415980,1735776647689,-500.0,0.00020273,3]
[347415981,1735776647699,-849.09,0.00020273,3]
[347415982,1735776647708,-600.23,0.00020273,3]
[347415983,1735776647717,-952.32,0.00020273,3]
[347415984,1735776647726,-557.94407902,0.00020273,3]
[347415985,1735776647737,-667.4,0.00020273,3]
[347415986,1735776647746,-639.07,0.00020273,3]
[347415987,1735776647755,-4994.91,0.00020273,3]
[347415988,1735776647764,-429.05793135,0.00020273,3]
[347415989,1735776647773,-500.0,0.00020273,3]
[347415990,1735776647783,-500.0,0.00020273,3]
[347415991,1735776647792,-500.0,0.00020273,3]
[347415992,1735776647801,-500.0,0.00020273,3]
[347415993,1735776647810,-746.51,0.00020273,3]
[347415994,1735776647819,-500.0,0.00020273,3]
[347415995,1735776647827,-500.0,0.00020273,3]
[347415996,1735776647837,-1006.46,0.00020273,3]
[347415997,1735776647846,-500.0,0.00020273,3]
[347415998,1735776647856,-500.0,0.00020273,3]
[347415999,1735776647869,-500.0,0.00020273,3]
[347416000,1735776647878,-500.0,0.00020273,3]
[347416001,1735776647888,-593.48,0.00020273,3]
[347416002,1735776647901,-793.13,0.00020273,3]
[347416003,1735776647910,-779.13,0.00020273,3]
[347416004,1735776647919,-893.86,0.00020273,3]
[347416005,1735776647928,-500.0,0.00020273,3]
[347416006,1735776647938,-706.07,0.00020273,3]
[347416007,1735776647947,-559.85953196,0.00020273,3]
[347416010,1735776751830,160.0,0.00024032,120]
[347416013,1735776910116,165.1157644,0.00014222,14]
[347416019,1735777294870,160.0,0.00022183,120]
[347416023,1735777530740,160.0,0.00024332,120]
[347416027,1735777617134,-220.074166,0.00013973,2]
[347416028,1735777617156,-6.78211807,0.00018151,2]
[347416300,1735777834354,-209.070457,0.00013973,2]
[347416302,1735777834364,-253.157543,0.00018151,2]
[347416305,1735777834377,-1033.19573803,0.00018151,2]
[347416307,1735777834388,-176.00143,0.00018152,2]
[347416309,1735777834397,-679.60283197,0.000188,2]
[347416711,1735777838416,-2537.47332991,0.000188,2]
[347416713,1735777838426,-197.005,0.00019072,2]
[347416715,1735777838435,-165.1157644,0.00019078,2]
[347416717,1735777838445,-172.31491018,0.00019078,2]
[347416719,1735777838455,-5164.75756255,0.00019134,2]
[347416721,1735777838464,-300.0,0.00019135,2]
[347416723,1735777838474,-500.0,0.00019173,2]
[347416726,1735777838483,-154.56,0.00019177,2]
[347416728,1735777838493,-500.0,0.00019177,2]
[347416730,1735777838503,-6668.7092851,0.00019177,4]
[347416733,1735777838513,-500.0,0.00019177,2]
[347416735,1735777838523,-633.6235253,0.00019177,2]
[347416737,1735777838533,-500.0,0.00019177,2]
[347416739,1735777838544,-172.28420782,0.00019177,2]
[347416741,1735777838554,-342.0,0.00019177,2]
[347416743,1735777838564,-296.44304715,0.00019177,2]
[347416745,1735777838573,-500.0,0.00019177,2]
[347416747,1735777838582,-500.0,0.00019177,2]
[347416749,1735777838592,-500.0,0.00019177,2]
[347416751,1735777838601,-320.77495155,0.00019177,2]
[347416753,1735777838610,-500.0,0.00019177,2]
[347416755,1735777838620,-500.0,0.00019177,2]
[347416757,1735777838630,-476.62471244,0.00019177,2]
[347416759,1735777838639,-500.0,0.00019178,2]
[347416761,1735777838649,-500.0,0.00019178,2]
[347416763,1735777838659,-500.0,0.00019178,2]
[347416765,1735777838668,-500.0,0.00019178,2]
[347416767,1735777838678,-500.0,0.00019178,2]
[347416770,1735777838687,-500.0,0.00019178,2]
[347416772,1735777838697,-500.0,0.00019178,2]
[347416774,1735777838707,-500.0,0.00019178,2]
[347416776,1735777838716,-500.0,0.00019178,2]
[347416778,1735777838725,-500.0,0.00019178,2]
[347416780,1735777838735,-613.30764603,0.00019178,2]
[347416782,1735777838744,-500.0,0.00019178,2]
[347416784,1735777838754,-500.0,0.00019178,2]
[347416786,1735777838763,-500.0,0.00019178,2]
[347416788,1735777838772,-500.0,0.00019178,2]
[347416790,1735777838781,-729.68,0.00019178,2]
[347416792,1735777838791,-206.05981643,0.00019178,2]
[347416857,1735777840248,-293.94018357,0.00019178,2]
[347416859,1735777840264,-200.0,0.00019178,2]
[347416861,1735777840274,-500.0,0.00019178,2]
[347416863,1735777840283,-500.0,0.00019178,2]
[347416865,1735777840293,-500.0,0.00019178,2]
[347416867,1735777840302,-500.0,0.00019178,2]
[347416869,1735777840311,-500.0,0.00019178,2]
[347416871,1735777840321,-500.0,0.00019178,2]
[347416873,1735777840330,-500.0,0.00019178,2]
[347416875,1735777840339,-500.0,0.00019178,2]
[347416877,1735777840348,-500.0,0.00019178,2]
[347416879,1735777840358,-500.0,0.00019178,2]
[347416881,1735777840367,-500.0,0.00019178,2]
[347416884,1735777840376,-507.61964064,0.00019178,2]
[347416886,1735777840386,-500.0,0.00019178,2]
[347416889,1735777840395,-500.0,0.00019178,2]
[347416891,1735777840404,-921.49,0.00019178,2]
[347416893,1735777840414,-500.0,0.00019178,2]
[347416895,1735777840423,-500.0,0.00019178,2]
[347416897,1735777840433,-500.0,0.00019178,2]
[347416899,1735777840442,-500.0,0.00019178,2]
[347416901,1735777840452,-500.0,0.00019178,2]
[347416903,1735777840461,-500.0,0.00019178,2]
[347416905,1735777840471,-500.0,0.00019178,2]
[347416907,1735777840480,-500.0,0.00019178,2]
[347416909,1735777840489,-500.0,0.00019178,2]
[347416911,1735777840499,-542.95,0.00019178,2]
[347416913,1735777840514,-500.0,0.00019178,2]
[347416915,1735777840525,-500.0,0.00019178,2]
[347416917,1735777840534,-500.0,0.00019178,2]
[347416919,1735777840544,-500.0,0.00019178,2]
[347416921,1735777840554,-595.33,0.00019178,2]
[347416923,1735777840565,-500.0,0.00019178,2]
[347416925,1735777840575,-500.0,0.00019178,2]
[347416927,1735777840586,-500.0,0.00019178,2]
[347416929,1735777840597,-668.17,0.00019178,2]
[347416931,1735777840608,-766.09,0.00019178,2]
[347416933,1735777840619,-672.19,0.00019178,2]
[347416935,1735777840631,-500.0,0.00019178,2]
[347416937,1735777840644,-500.0,0.00019178,2]
[347416939,1735777840655,-753.92,0.00019178,2]
[347416941,1735777840666,-528.35,0.00019178,2]
[347416943,1735777840676,-505.93,0.00019178,2]
[347416945,1735777840685,-500.0,0.00019178,2]
[347416947,1735777840695,-590.99,0.00019178,2]
[347416949,1735777840706,-549.61,0.00019178,2]
[347416951,1735777840715,-500.0,0.00019178,2]
[347416953,1735777840725,-500.0,0.00019178,2]
[347416955,1735777840735,-500.0,0.00019178,2]
[347416957,1735777840744,-500.0,0.00019178,2]
[347416959,1735777840755,-500.0,0.00019178,2]
[347416960,1735777840765,-500.0,0.00019178,2]
[347416961,1735777840774,-1068.34,0.00019178,2]
[347416962,1735777840783,-627.89,0.00019178,2]
[347416963,1735777840792,-500.0,0.00019178,2]
[347416964,1735777840801,-500.0,0.00019178,2]
[347416965,1735777840811,-500.0,0.00019178,2]
[347416966,1735777840820,-500.0,0.00019178,2]
[347416967,1735777840830,-558.98,0.00019178,2]
[347416968,1735777840840,-801.24,0.00019178,2]
[347416969,1735777840850,-737.88,0.00019178,2]
[347416970,1735777840859,-500.0,0.00019178,2]
[347416971,1735777840869,-1641.34,0.00019178,2]
[347416972,1735777840880,-2451.4,0.00019178,2]
[347416973,1735777840894,-871.25,0.00019178,2]
[347416974,1735777840907,-500.0,0.00019178,2]
[347416975,1735777840921,-500.0,0.00019178,2]
[347416976,1735777840934,-616.81,0.00019178,2]
[347416977,1735777840946,-500.0,0.00019178,2]
[347416978,1735777840957,-671.12,0.00019178,2]
[347416979,1735777840967,-500.0,0.00019178,2]
[347416980,1735777840980,-500.0,0.00019178,2]
[347416981,1735777840991,-500.0,0.00019178,2]
[347416982,1735777841006,-563.32,0.00019178,2]
[347416983,1735777841018,-986.74,0.00019178,2]
[347416984,1735777841029,-583.96,0.00019178,2]
[347416985,1735777841042,-500.0,0.00019178,2]
[347416986,1735777841054,-500.0,0.00019178,2]
[347416987,1735777841065,-1226.38,0.00019178,2]
[347416988,1735777841076,-500.0,0.00019178,2]
[347416989,1735777841089,-500.0,0.00019178,2]
[347416990,1735777841101,-500.0,0.00019178,2]
[347416991,1735777841113,-789.71,0.00019178,2]
[347416992,1735777841125,-1218.89,0.00019178,2]
[347416993,1735777841136,-500.0,0.00019178,2]
[347416994,1735777841148,-500.0,0.00019178,2]
[347416995,1735777841160,-500.0,0.00019178,2]
[347416996,1735777841171,-957.04,0.00019178,2]
[347416997,1735777841184,-22608.42,0.00019178,2]
[347416998,1735777841196,-500.0,0.00019178,2]
[347416999,1735777841208,-1961.23,0.00019178,2]
[347417000,1735777841220,-194.6827517,0.00019178,2]
[347417001,1735777841231,-796.78,0.00019178,2]
[347417002,1735777841241,-2681.1,0.00019178,2]
[347417003,1735777841251,-887.64,0.00019178,2]
[347417004,1735777841271,-3277.34,0.00019178,2]
[347417005,1735777841281,-550.96,0.00019178,2]
[347417006,1735777841293,-736.04,0.00019178,2]
[347417007,1735777841305,-500.0,0.00019178,2]
[347417008,1735777841317,-589.08,0.00019178,2]
[347417009,1735777841329,-2011.33,0.00019178,2]
[347417010,1735777841340,-500.0,0.00019178,2]
[347417011,1735777841352,-1379.49,0.00019178,2]
[347417012,1735777841365,-500.0,0.00019178,2]
[347417013,1735777841377,-500.0,0.00019178,2]
[347417014,1735777841389,-500.0,0.00019178,2]
[347417015,1735777841402,-500.0,0.00019178,2]
[347417016,1735777841416,-500.0,0.00019178,2]
[347417017,1735777841427,-1183.65,0.00019178,2]
[347417018,1735777841437,-500.0,0.00019178,2]
[347417019,1735777841448,-1184.4,0.00019178,2]
[347417020,1735777841459,-500.0,0.00019178,2]
[347417021,1735777841471,-500.0,0.00019178,2]
[347417022,1735777841483,-500.0,0.00019178,2]
[347417023,1735777841496,-500.0,0.00019178,2]
[347417024,1735777841511,-1120.19,0.00019178,2]
[347417025,1735777841523,-500.0,0.00019178,2]
[347417026,1735777841534,-3954.3,0.00019178,2]
[347417027,1735777841544,-605.68,0.00019178,2]
[347417028,1735777841555,-4837.4,0.00019178,2]
[347417029,1735777841566,-2216.78,0.00019178,2]
[347417030,1735777841577,-500.0,0.00019178,2]
[347417031,1735777841588,-500.0,0.00019178,2]
[347417032,1735777841600,-314.74108468,0.00019178,2]
[347417033,1735777841610,-707.64,0.00019178,2]
[347417034,1735777841621,-165.19738281,0.00019178,2]
[347417274,1735777969350,1140.10402429,0.00025,120]
[347417284,1735778512275,-271.603,0.00017696,14]
[347417294,1735778910722,160.0,0.00024212,120]
[347417295,1735778978278,160.0,0.00025,120]
[347417297,1735779010676,176.0,0.00025,120]
[347417336,1735779032518,-407.394243,0.00016932,14]
[347417337,1735779032528,-178.997243,0.00017103,14]
[347417338,1735779032538,-946.6500016,0.00017983,2]
[347417339,1735779032548,-279.06554021,0.000189,2]
[347417700,1735779038309,-380.209,0.000189,2]